bitfinex/quotes_SOLUSD_20230112
["timestamp","ask_amount","ask_price","bid_price","bid_amount"]
[1673481600936,18.92,16.377,16.365,20.0]
[1673481601788,396.1,16.388,16.371,20.0]
[1673481602012,0.96,16.387,16.372,21.0]
[1673481602316,0.96,16.387,16.374,1.0]
[1673481602512,0.96,16.387,16.374,21.0]
[1673481602715,0.96,16.387,16.375,63.99274592]
[1673481602932,0.96,16.387,16.376,20.0]
[1673481603140,0.96,16.387,16.378,20.0]
[1673481603568,0.96,16.387,16.379,20.0]
[1673481603800,0.96,16.387,16.379,39.14496728]
[1673481603992,0.96,16.386,16.379,39.14496728]
[1673481604310,0.96,16.385,16.379,39.14496728]
[1673481604637,0.96,16.385,16.38,19.14496728]
[1673481604844,0.96,16.384,16.381,20.0]
[1673481605358,0.96,16.384,16.381,39.14496728]
[1673481605981,25.32,16.39,16.381,39.14496728]
[1673481606192,4182.32151986,16.441,16.381,39.14496728]
[1673481606193,127.67,16.41,16.381,39.14496728]
[1673481606411,25.49,16.4,16.382,0.96]
[1673481606618,5.62409,16.399,16.382,40.10496728]
[1673481606817,5.62409,16.398,16.382,20.96]
[1673481607027,5.62409,16.398,16.379,0.96]
[1673481607255,25.49,16.4,16.38,25.49]
[1673481607469,229.46,16.399,16.381,20.96]
[1673481607896,5.62409,16.398,16.381,20.96]
[1673481608084,45.76,16.397,16.381,0.96]
[1673481608299,229.46,16.398,16.382,19.14496728]
[1673481608532,0.96,16.397,16.383,20.0]
[1673481608739,46.73,16.396,16.383,20.0]
[1673481609050,0.96,16.396,16.383,20.0]
[1673481609264,0.96,16.397,16.381,20.63060935]
[1673481609454,25.26,16.4,16.381,20.63060935]
[1673481609455,25.26,16.4,16.381,39.77557663]
[1673481609668,45.75,16.401,16.382,39.14496728]
[1673481609981,45.74,16.406,16.383,40.14496728]
[1673481610202,19.14496728,16.408,16.384,20.0]
[1673481610203,45.74,16.407,16.384,20.0]
[1673481610410,45.74,16.407,16.384,147.84836728]
[1673481610631,45.73,16.408,16.385,41.06496728]
[1673481610837,45.73,16.408,16.386,20.0]
[1673481611032,45.73,16.408,16.386,39.14496728]
[1673481611663,45.73,16.408,16.387,20.0]
[1673481612084,45.73,16.408,16.388,20.0]
[1673481612726,45.73,16.409,16.39,45.46]
[1673481612923,45.73,16.409,16.391,113.5054]
[1673481613130,45.73,16.409,16.392,20.0]
[1673481613349,45.73,16.409,16.393,0.96]
[1673481613550,45.71,16.415,16.394,20.96]
[1673481613763,25.71,16.42,16.394,20.96]
[1673481613764,45.7,16.419,16.395,20.0]
[1673481615057,45.7,16.419,16.397,1.0]
[1673481615257,127.59,16.43,16.4,25.36]
[1673481615440,183.7,16.428,16.402,1.0]
[1673481615651,45.68,16.427,16.402,21.0]
[1673481615872,64.82496728,16.427,16.402,21.0]
[1673481616093,64.82496728,16.427,16.404,1.0]
[1673481616505,64.82496728,16.427,16.406,1.0]
[1673481616716,20.0,16.426,16.406,1.0]
[1673481616935,45.69,16.425,16.408,1.0]
[1673481617148,45.69,16.425,16.409,20.0]
[1673481617345,45.67,16.429,16.411,1.0]
[1673481617553,45.67,16.429,16.411,21.0]
[1673481617884,19.14496728,16.428,16.413,1.0]
[1673481618080,25.49,16.42,16.413,1.0]
[1673481618283,45.7,16.419,16.405,20.0]
[1673481619149,18.92,16.418,16.405,20.0]
[1673481619363,45.71,16.417,16.405,20.0]
[1673481619582,0.96,16.416,16.405,20.0]
[1673481619800,45.71,16.415,16.398,53.14909822]
[1673481620006,127.45,16.41,16.392,131.2226]
[1673481620216,45.73,16.409,16.392,131.2226]
[1673481620413,17.96,16.408,16.392,131.2226]
[1673481620740,46.7,16.407,16.392,131.2226]
[1673481620962,17.0,16.406,16.392,131.2226]
[1673481621146,47.66,16.405,16.392,131.2226]
[1673481621354,17.0,16.404,16.392,131.2226]
[1673481621575,0.96,16.403,16.392,131.2226]
[1673481621779,0.96,16.402,16.392,131.2226]
[1673481621989,0.96,16.401,16.392,131.2226]
[1673481622943,0.96,16.4,16.392,131.2226]
[1673481623138,0.96,16.399,16.393,20.0]
[1673481623355,0.96,16.399,16.386,20.0]
[1673481623577,0.96,16.398,16.386,20.0]
[1673481623787,0.96,16.397,16.386,20.0]
[1673481624218,17.96,16.397,16.386,20.0]
[1673481624527,17.0,16.396,16.386,20.0]
[1673481624713,0.96,16.395,16.386,20.0]
[1673481624928,0.96,16.394,16.386,20.0]
[1673481625240,0.96,16.393,16.386,20.0]
[1673481626397,45.74,16.406,16.386,20.0]
[1673481626717,183.7,16.408,16.386,20.0]
[1673481626938,183.7,16.408,16.388,2.195]
[1673481627148,183.7,16.406,16.387,40.0]
[1673481627368,183.7,16.406,16.389,20.0]
[1673481627566,183.7,16.406,16.39,20.0]
[1673481627567,45.74,16.405,16.39,20.0]
[1673481628416,183.7,16.407,16.39,20.0]
[1673481628605,25.32,16.4,16.389,20.0]
[1673481628814,45.76,16.399,16.389,20.0]
[1673481629035,0.96,16.398,16.389,20.0]
[1673481629666,0.96,16.397,16.389,20.0]
[1673481633581,0.96,16.397,16.387,20.0]
[1673481633784,0.96,16.396,16.382,20.0]
[1673481633986,230.43,16.396,16.385,20.0]
[1673481634197,184.66,16.396,16.385,20.0]
[1673481634521,17.0,16.395,16.385,20.0]
[1673481634731,0.96,16.394,16.383,20.0]
[1673481640094,25.25,16.39,16.36,127.41]
[1673481640290,0.98497645,16.388,16.371,20.0]
[1673481640497,0.98497645,16.386,16.371,20.0]
[1673481640728,1.26225385,16.384,16.365,129.2172]
[1673481640946,1.26225385,16.382,16.365,129.2172]
[1673481641142,1.26225385,16.383,16.365,129.2172]
[1673481641359,0.96,16.382,16.365,129.2172]
[1673481641585,26.5888387,16.38,16.365,109.2172]
[1673481641768,1.78083161,16.378,16.354,109.2172]
[1673481641980,1.91596843,16.376,16.354,109.2172]
[1673481642198,25.25,16.37,16.354,109.2172]
[1673481642402,1.91596843,16.369,16.354,109.2172]
[1673481642617,0.96,16.368,16.354,109.2172]
[1673481642840,1.91596843,16.367,16.354,109.2172]
[1673481643061,1.92,16.366,16.354,109.2172]
[1673481643362,1.91596843,16.365,16.355,20.0]
[1673481643570,1.91596843,16.363,16.355,20.0]
[1673481643778,0.96,16.362,16.355,20.0]
[1673481646405,1.91596843,16.366,16.355,20.0]
[1673481646620,21.91596843,16.372,16.355,20.0]
[1673481646826,25.32,16.37,16.355,20.0]
[1673481647020,1.91596843,16.369,16.355,20.0]
[1673481647244,47.75596843,16.369,16.355,20.0]
[1673481647572,20.0,16.372,16.355,20.0]
[1673481647573,1.91596843,16.37,16.355,20.0]
[1673481647771,1.91596843,16.371,16.355,20.0]
[1673481648179,47.75596843,16.371,16.355,20.0]
[1673481648813,1.91596843,16.369,16.35,20.0]
[1673481649021,1.91596843,16.367,16.351,39.14496728]
[1673481649248,47.76596843,16.367,16.351,20.0]
[1673481649458,1.91596843,16.365,16.351,20.0]
[1673481649671,0.96,16.364,16.35,20.0]
[1673481649983,1.91596843,16.365,16.351,20.0]
[1673481650396,0.96,16.364,16.351,20.0]
[1673481650602,1.91596843,16.363,16.348,20.0]
[1673481650811,1.91596843,16.363,16.347,118.0519]
[1673481650812,0.96,16.362,16.347,118.0519]
[1673481651029,48.73596843,16.361,16.347,118.0519]
[1673481651238,17.0,16.36,16.347,118.0519]
[1673481651456,1.91596843,16.359,16.347,118.0519]
[1673481651769,0.96,16.358,16.347,118.0519]
[1673481651981,45.84,16.369,16.35,25.46]
[1673481652193,127.14,16.38,16.35,25.46]
[1673481652194,45.82,16.377,16.351,20.0]
[1673481652602,0.75379944,16.376,16.351,39.14496728]
[1673481652811,45.82,16.375,16.352,19.14496728]
[1673481653026,45.82,16.375,16.353,118.0113]
[1673481653336,20.0,16.374,16.354,20.0]
[1673481653549,45.83,16.373,16.355,109.3097]
[1673481653760,20.0,16.372,16.355,109.3097]
[1673481654071,20.0,16.371,16.355,109.3097]
[1673481654281,65.84,16.371,16.355,109.3097]
[1673481654490,183.7,16.372,16.355,109.3097]
[1673481654720,45.84,16.371,16.355,109.3097]
[1673481654934,17.96,16.37,16.355,109.3097]
[1673481655144,45.84,16.369,16.355,109.3097]
[1673481655327,17.96,16.368,16.355,109.3097]
[1673481655753,0.96,16.368,16.355,109.3097]
[1673481656273,45.83,16.373,16.355,109.3097]
[1673481656483,20.0,16.372,16.355,109.3097]
[1673481657118,223.7,16.376,16.355,109.3097]
[1673481657331,45.82,16.375,16.355,109.3097]
[1673481657545,20.0,16.373,16.355,109.3097]
[1673481657764,65.83,16.372,16.355,109.3097]
[1673481657960,82.83,16.372,16.355,109.3097]
[1673481658612,82.33,16.372,16.355,109.3097]
[1673481658828,1.92,16.371,16.355,109.3097]
[1673481659134,1.92,16.371,16.354,20.0]
[1673481659335,183.7,16.369,16.34,127.44]
[1673481659538,20.0,16.367,16.346,109.1366]
[1673481659749,67.93248138,16.366,16.346,109.1366]
[1673481660093,17.0,16.365,16.346,128.28156728]
[1673481660275,0.63631241,16.363,16.346,128.28156728]
[1673481660485,0.96,16.362,16.346,128.28156728]
[1673481660696,0.96,16.361,16.346,128.28156728]
[1673481660900,0.96,16.36,16.346,128.28156728]
[1673481661232,0.86754181,16.359,16.339,20.0]
[1673481661429,75.87,16.358,16.338,110.9311]
[1673481661634,205.1429234,16.357,16.338,110.9311]
[1673481661854,183.7,16.355,16.338,110.9311]
[1673481662064,18.4429234,16.354,16.338,110.9311]
[1673481662395,1.4429234,16.352,16.338,110.9311]
[1673481662585,2.4029234,16.351,16.338,110.9311]
[1673481662793,19.4029234,16.351,16.338,110.9311]
[1673481663212,19.4029234,16.351,16.338,109.405616]
[1673481663418,1.4429234,16.349,16.338,109.405616]
[1673481663635,1.4429234,16.347,16.338,109.405616]
[1673481663872,1.92,16.346,16.338,109.405616]
[1673481664081,1.92,16.346,16.339,20.0]
[1673481664613,1.92,16.346,16.338,109.405616]
[1673481664932,1.92,16.346,16.331,20.0]
[1673481665122,0.90774805,16.345,16.331,20.0]
[1673481665462,0.96,16.344,16.331,20.0]
[1673481665975,1.0178205,16.343,16.331,20.0]
[1673481666176,0.96,16.342,16.331,20.0]
[1673481666390,0.96,16.344,16.331,20.0]
[1673481666593,1.04248512,16.343,16.331,20.0]
[1673481666799,1.2030766,16.341,16.326,111.0943]
[1673481667246,0.96,16.34,16.326,111.0943]
[1673481667436,1.525484,16.339,16.326,111.0943]
[1673481667962,0.96,16.338,16.326,111.0943]
[1673481669007,0.96,16.338,16.322,118.7443]
[1673481669008,0.96,16.337,16.322,118.7443]
[1673481669223,0.96,16.336,16.317,119.6488]
[1673481669437,230.59,16.335,16.318,118.7443]
[1673481669646,25.49,16.33,16.318,118.7443]
[1673481669858,63.91,16.329,16.318,118.7443]
[1673481670687,0.96,16.328,16.311,20.0]
[1673481670910,0.96,16.327,16.312,114.1114]
[1673481671321,25.32,16.32,16.306,20.0]
[1673481671529,25.32,16.32,16.307,114.1114]
[1673481671754,17.96,16.319,16.307,114.1114]
[1673481672178,45.96,16.327,16.307,114.1114]
[1673481672380,25.25,16.33,16.308,128.19176728]
[1673481672595,229.65,16.329,16.308,128.19176728]
[1673481672907,223.7,16.328,16.308,109.0468]
[1673481673113,45.96,16.327,16.308,109.0468]
[1673481673324,20.0,16.325,16.308,109.0468]
[1673481673536,45.97,16.324,16.301,20.0]
[1673481673859,25.49,16.32,16.302,109.3487]
[1673481674061,63.94,16.319,16.302,109.3487]
[1673481674275,63.94,16.319,16.302,104.3487]
[1673481674475,1.37632381,16.318,16.302,104.3487]
[1673481674692,0.96,16.317,16.302,104.3487]
[1673481675009,1.37632381,16.316,16.302,104.3487]
[1673481675221,1.37632381,16.314,16.303,20.0]
[1673481675416,0.96,16.317,16.303,20.0]
[1673481675417,1.37632381,16.316,16.303,20.0]
[1673481675631,1.37632381,16.314,16.303,20.0]
[1673481675840,0.96,16.313,16.303,20.0]
[1673481676047,1.37632381,16.316,16.303,20.0]
[1673481676273,0.96,16.317,16.303,20.0]
[1673481676274,1.37632381,16.314,16.303,20.0]
[1673481676489,1.37632381,16.317,16.303,20.0]
[1673481676684,20.0,16.318,16.303,20.0]
[1673481676685,21.37632381,16.319,16.303,20.0]
[1673481676890,21.37632381,16.319,16.274,116.82875577]
[1673481676891,251.05632381,16.319,16.274,116.82875577]
[1673481677099,1.55904138,16.317,16.29,137.1707]
[1673481677333,1.55904138,16.315,16.29,137.1707]
[1673481677526,1.55904138,16.313,16.29,137.1707]
[1673481677731,1.55904138,16.311,16.29,137.1707]
[1673481677957,1.55904138,16.311,16.29,239.0307]
[1673481678166,1.55904138,16.317,16.297,19.14496728]
[1673481678375,298.28157296,16.344,16.3,25.49]
[1673481678376,1.55904138,16.319,16.3,25.49]
[1673481678572,45.97,16.324,16.3,25.49]
[1673481678900,45.97,16.324,16.302,20.0]
[1673481679111,50.19236711,16.329,16.302,20.0]
[1673481679112,45.96,16.327,16.303,20.0]
[1673481679329,45.95,16.328,16.303,20.0]
[1673481679540,45.95,16.328,16.304,109.1054]
[1673481679736,20.0,16.325,16.304,109.1054]
[1673481679942,65.97,16.324,16.304,109.1054]
[1673481680262,25.25,16.32,16.29,239.0207]
[1673481680465,67.71351815,16.319,16.292,109.1054]
[1673481680795,19.91848543,16.319,16.293,20.0]
[1673481681007,128.13,16.33,16.3,127.45]
[1673481681217,20.0,16.329,16.3,132.966]
[1673481681432,25.71,16.33,16.31,25.49]
[1673481681433,45.95,16.328,16.31,25.49]
[1673481681739,25.71,16.33,16.311,20.0]
[1673481681953,45.95,16.329,16.311,20.0]
[1673481682143,25.71,16.33,16.311,20.0]
[1673481682702,45.95,16.329,16.312,110.784]
[1673481683002,45.95,16.329,16.313,20.0]
[1673481683226,25.71,16.33,16.313,20.0]
[1673481684053,45.93,16.335,16.313,20.0]
[1673481684269,20.0,16.334,16.313,20.0]
[1673481684670,20.0,16.334,16.314,20.0]
[1673481685005,20.0,16.338,16.314,20.0]
[1673481685210,183.7,16.336,16.314,20.0]
[1673481685530,20.0,16.334,16.314,20.0]
[1673481685847,18.92,16.333,16.313,20.0]
[1673481686044,248.56,16.333,16.313,20.0]
[1673481686670,25.49,16.33,16.313,20.0]
[1673481687001,18.92,16.329,16.313,20.0]
[1673481687931,209.19,16.33,16.313,20.0]
[1673481688670,229.64,16.333,16.313,40.0]
[1673481689095,127.59,16.34,16.313,40.0]
[1673481689096,45.92,16.339,16.313,40.0]
[1673481689508,45.94,16.334,16.313,40.0]
[1673481689714,45.93,16.337,16.314,20.0]
[1673481689948,20.0,16.336,16.314,20.0]
[1673481690566,20.0,16.338,16.314,20.0]
[1673481690790,45.93,16.337,16.314,20.0]
[1673481690983,20.0,16.336,16.314,20.0]
[1673481691196,45.93,16.335,16.314,20.0]
[1673481691404,20.0,16.334,16.314,20.0]
[1673481692154,20.0,16.336,16.314,20.0]
[1673481692344,63.89,16.335,16.314,20.0]
[1673481692551,20.0,16.334,16.314,20.0]
[1673481692773,17.96,16.333,16.314,20.0]
[1673481692980,18.92,16.333,16.314,20.0]
[1673481693941,579.8,16.34,16.32,23.88]
[1673481694128,396.1,16.34,16.321,20.0]
[1673481694673,396.1,16.34,16.322,20.0]
[1673481694889,396.1,16.34,16.323,20.0]
[1673481695923,17.96,16.339,16.323,20.0]
[1673481696136,201.66,16.339,16.323,20.0]
[1673481696461,230.59,16.338,16.323,20.0]
[1673481696871,17.96,16.337,16.323,20.0]
[1673481697072,65.93,16.336,16.32,23.72]
[1673481697278,201.66,16.335,16.318,116.2536]
[1673481697501,65.94,16.334,16.318,116.2536]
[1673481697713,17.96,16.333,16.318,116.2536]
[1673481697928,183.7,16.331,16.318,116.2536]
[1673481698134,64.87,16.33,16.318,116.2536]
[1673481698773,248.57,16.33,16.318,116.2536]
[1673481699600,64.87,16.33,16.318,116.2536]
[1673481699808,18.92,16.33,16.318,116.2536]
[1673481700122,18.92,16.33,16.313,20.0]
[1673481700338,248.79496728,16.329,16.313,20.0]
[1673481700541,17.96,16.328,16.313,20.0]
[1673481700746,45.96,16.327,16.313,20.0]
[1673481700968,17.96,16.326,16.313,20.0]
[1673481701169,45.96,16.327,16.313,20.0]
[1673481701386,45.95,16.329,16.313,20.0]
[1673481701599,45.94,16.333,16.313,20.0]
[1673481702658,183.7,16.332,16.313,20.0]
[1673481702872,183.7,16.33,16.313,20.0]
[1673481703077,183.7,16.328,16.313,20.0]
[1673481703279,64.88,16.327,16.313,20.0]
[1673481703713,18.92,16.327,16.313,20.0]
[1673481704130,45.95,16.33,16.313,20.0]
[1673481704337,45.94,16.333,16.313,20.0]
[1673481704966,45.93,16.337,16.32,23.88]
[1673481705174,183.7,16.343,16.321,20.0]
[1673481705175,45.92,16.339,16.321,20.0]
[1673481705385,229.61,16.342,16.321,20.0]
[1673481706216,23.77,16.34,16.317,108.7555]
[1673481706434,183.7,16.338,16.318,20.0]
[1673481706643,183.7,16.336,16.318,20.0]
[1673481706974,63.89,16.337,16.317,224.8277]
[1673481706975,183.7,16.334,16.317,224.8277]
[1673481707284,183.7,16.332,16.317,224.8277]
[1673481707494,46.91,16.331,16.317,224.8277]
[1673481707686,17.0,16.33,16.317,224.8277]
[1673481707897,46.91,16.329,16.317,224.8277]
[1673481708107,17.96,16.328,16.317,224.8277]
[1673481708432,45.95,16.329,16.318,20.0]
[1673481708645,65.94,16.333,16.318,20.0]
[1673481708875,20.0,16.333,16.318,20.0]
[1673481709070,20.0,16.338,16.318,20.0]
[1673481709391,45.93,16.337,16.32,23.81]
[1673481709600,45.92,16.34,16.32,23.81]
[1673481710122,45.92,16.34,16.321,20.0]
[1673481710442,45.92,16.34,16.322,20.0]
[1673481710655,45.92,16.34,16.323,20.0]
[1673481711382,17.96,16.339,16.323,20.0]
[1673481711689,45.93,16.338,16.323,20.0]
[1673481711898,17.96,16.337,16.323,20.0]
[1673481712313,45.92,16.34,16.323,20.0]
[1673481712539,396.1,16.342,16.324,20.0]
[1673481713173,45.92,16.341,16.324,20.0]
[1673481713364,45.92,16.341,16.325,113.0809]
[1673481713577,19.14496728,16.34,16.325,111.5809]
[1673481713905,63.88,16.339,16.325,111.5809]
[1673481714125,0.96,16.338,16.325,111.5809]
[1673481714336,46.89,16.337,16.325,111.5809]
[1673481714529,17.0,16.336,16.325,111.5809]
[1673481714737,0.96,16.335,16.325,111.5809]
[1673481715579,0.96,16.334,16.325,111.5809]
[1673481715799,0.96,16.333,16.325,111.5809]
[1673481715994,45.93,16.338,16.325,111.5809]
[1673481716204,229.62,16.34,16.326,114.7687]
[1673481716856,19.14496728,16.339,16.323,20.0]
[1673481717050,45.93,16.338,16.323,20.0]
[1673481717266,1.92,16.337,16.323,20.0]
[1673481717465,45.93,16.336,16.323,20.0]
[1673481717691,0.96,16.335,16.323,20.0]
[1673481717900,45.92,16.34,16.323,20.0]
[1673481718222,396.1,16.342,16.323,20.0]
[1673481718436,45.92,16.341,16.323,20.0]
[1673481719359,17.96,16.34,16.325,20.0]
[1673481719574,17.96,16.34,16.326,114.5449]
[1673481719775,45.92,16.341,16.326,114.5449]
[1673481720436,45.92,16.341,16.327,20.0]
[1673481720738,229.61,16.345,16.327,20.0]
[1673481720958,20.0,16.344,16.327,20.0]
[1673481721795,183.7,16.342,16.326,114.5449]
[1673481721983,229.62,16.341,16.326,114.5449]
[1673481722198,248.76496728,16.341,16.326,114.5449]
[1673481722638,17.96,16.34,16.326,114.5449]
[1673481722824,45.92,16.339,16.326,114.5449]
[1673481723032,17.96,16.338,16.326,114.5449]
[1673481723267,0.96,16.337,16.326,114.5449]
[1673481723469,46.89,16.337,16.326,114.5449]
[1673481723682,17.96,16.336,16.326,114.5449]
[1673481723912,0.96,16.335,16.326,114.5449]
[1673481724630,0.96,16.335,16.324,108.2081]
[1673481724842,20.10496728,16.335,16.313,20.0]
[1673481725046,20.10496728,16.335,16.318,110.8765]
[1673481725047,267.6,16.334,16.318,110.8765]
[1673481725473,183.7,16.332,16.318,110.8765]
[1673481725678,183.7,16.33,16.318,110.8765]
[1673481725884,18.92,16.329,16.318,110.8765]
[1673481727474,18.92,16.329,16.317,108.7555]
[1673481727703,64.87,16.329,16.317,108.7555]
[1673481727928,183.7,16.328,16.31,20.0]
[1673481728126,267.62,16.327,16.31,112.2471]
[1673481728322,37.96,16.326,16.31,112.2471]
[1673481728528,250.62,16.325,16.31,112.2471]
[1673481728739,17.96,16.324,16.31,112.2471]
[1673481728961,183.7,16.322,16.31,112.2471]
[1673481729280,17.96,16.321,16.31,112.2471]
[1673481729491,18.92,16.321,16.31,112.2471]
[1673481729682,20.0,16.325,16.31,112.2471]
[1673481730103,39.14496728,16.325,16.31,112.2471]
[1673481730325,20.0,16.325,16.31,112.2471]
[1673481730532,45.96,16.324,16.31,112.2471]
[1673481730743,20.0,16.323,16.31,112.2471]
[1673481730963,17.0,16.322,16.31,112.2471]
[1673481731802,0.96,16.321,16.31,112.2471]
[1673481732004,1.92,16.321,16.31,112.2471]
[1673481732209,47.89,16.321,16.31,112.2471]
[1673481732424,17.0,16.32,16.31,112.2471]
[1673481732635,0.96,16.319,16.31,112.2471]
[1673481733374,0.96,16.318,16.31,112.2471]
[1673481733590,0.96,16.317,16.31,112.2471]
[1673481734317,0.96,16.316,16.31,112.2471]
[1673481734536,0.96,16.315,16.31,112.2471]
[1673481735789,229.67,16.322,16.31,112.2471]
[1673481736011,45.97,16.322,16.31,112.2471]
[1673481736733,25.58,16.32,16.31,112.2471]
[1673481736941,102.32,16.33,16.31,112.2471]
[1673481736942,396.1,16.334,16.311,20.0]
[1673481737266,396.1,16.334,16.313,20.0]
[1673481737473,396.1,16.334,16.314,20.0]
[1673481737790,396.1,16.334,16.32,25.58]
[1673481738197,396.1,16.334,16.321,20.0]
[1673481738402,396.1,16.334,16.321,39.14496728]
[1673481738615,396.1,16.334,16.322,19.14496728]
[1673481738840,396.1,16.334,16.323,20.0]
[1673481739067,229.61,16.344,16.321,20.0]
[1673481739068,183.7,16.341,16.321,20.0]
[1673481739682,25.58,16.34,16.321,20.0]
[1673481740545,25.58,16.34,16.322,20.0]
[1673481740744,229.62,16.341,16.323,20.0]
[1673481740956,25.46,16.34,16.323,20.0]
[1673481741361,183.7,16.338,16.323,20.0]
[1673481741571,25.46,16.34,16.323,20.0]
[1673481741572,183.7,16.336,16.323,20.0]
[1673481741781,18.92,16.335,16.317,20.0]
[1673481742010,18.92,16.335,16.31,127.45]
[1673481742206,25.46,16.33,16.314,108.8754]
[1673481742420,17.96,16.329,16.314,108.8754]
[1673481742633,0.96,16.328,16.314,108.8754]
[1673481742957,0.96,16.327,16.314,108.8754]
[1673481743283,249.76496728,16.327,16.303,20.0]
[1673481743475,37.96,16.326,16.311,10.0]
[1673481743685,230.62,16.325,16.311,10.0]
[1673481744002,17.0,16.324,16.308,223.9863]
[1673481744221,20.96,16.323,16.308,223.9863]
[1673481744412,17.96,16.322,16.308,223.9863]
[1673481744625,0.96,16.321,16.308,223.9863]
[1673481744832,0.96,16.32,16.308,223.9863]
[1673481745059,0.96,16.319,16.308,223.9863]
[1673481746297,0.96,16.319,16.3,45.77]
[1673481746298,0.96,16.319,16.3,20.0]
[1673481746531,0.96,16.319,16.303,115.7993]
[1673481746532,229.68,16.318,16.303,115.7993]
[1673481746742,0.96,16.317,16.303,115.7993]
[1673481746952,230.65,16.316,16.303,115.7993]
[1673481747144,0.96,16.315,16.303,115.7993]
[1673481747480,0.96,16.314,16.299,119.9877]
[1673481747672,0.96,16.314,16.3,20.0]
[1673481747673,0.96,16.313,16.3,20.0]
[1673481748097,17.96,16.313,16.299,230.8866]
[1673481749245,45.98,16.317,16.299,230.8866]
[1673481749460,45.98,16.318,16.3,20.0]
[1673481749687,45.98,16.318,16.3,40.0]
[1673481750735,229.68,16.318,16.3,40.0]
[1673481751268,229.68,16.318,16.299,230.8866]
[1673481751489,20.0,16.317,16.299,230.8866]
[1673481751665,183.7,16.315,16.299,230.8866]
[1673481751876,84.91,16.314,16.299,230.8866]
[1673481753470,268.61,16.314,16.299,230.8866]
[1673481754411,268.61,16.314,16.291,20.0]
[1673481754631,268.61,16.314,16.292,135.2341]
[1673481754844,268.61,16.314,16.293,20.0]
[1673481755153,30.0,16.312,16.293,20.0]
[1673481755340,64.92,16.311,16.293,20.0]
[1673481755781,248.62,16.311,16.293,20.0]
[1673481757034,248.62,16.311,16.292,135.2341]
[1673481757896,246.7,16.311,16.293,20.0]
[1673481759375,1.92,16.31,16.293,20.0]
[1673481759679,1.92,16.31,16.292,135.2341]
[1673481759680,229.71,16.309,16.292,135.2341]
[1673481759871,17.96,16.308,16.292,115.2341]
[1673481760088,66.01,16.307,16.292,115.2341]
[1673481760312,17.96,16.306,16.292,115.2341]
[1673481760516,20.0,16.305,16.292,115.2341]